[Event "CCT Chesscom Classic-D2 2024"]
[Site "Online"]
[Date "2024.05.12"]
[Round "3"]
[White "Dubov, Daniil"]
[Black "Vachier-Lagrave, Maxime"]
[Result "1-0"]
[ECO "E07"]
[WhiteElo "2707"]
[BlackElo "2732"]
[Annotator "ChessBase"]
[PlyCount "177"]
[EventDate "2024.05.08"]
[EventType "k.o."]
[EventCountry "NET"]
[SourceTitle "playchess.com"]
[Source "ChessBase"]
[SourceQuality "1"]
[TimeControl "600+2"]

1. d4 {[%emt 0:00:02]} Nf6 {[%emt 0:00:03]} 2. c4 {[%emt 0:00:02]} e6 {[%emt 0:00:00]} 3. Nf3 {[%emt 0:00:05]} d5 {[%emt 0:00:04]} 4. Nc3 {[%emt 0:00:08]} Nbd7 {[%emt 0:00:04]} 5. g3 {[%emt 0:00:02]} Be7 {[%emt 0:00:27]} 6. Bg2 {[%emt 0:00:04]} O-O {[%emt 0:00:01]} 7. Ne5 {[%emt 0:00:05]} c6 {[%emt 0:00:16]} 8. O-O {[%emt 0:00:01]} a5 {[%emt 0:00:13]} 9. Bf4 {[%emt 0:00:08]} dxc4 {[%emt 0:00:01]} 10. Nxc4 {[%emt 0:00:06]} Nd5 {[%emt 0:00:00]} 11. Rc1 {[%emt 0:00:22]} Nxf4 {[%emt 0:00:12]} 12. gxf4 {[%emt 0:00:01]} Kh8 {[%emt 0:00:01]} 13. Kh1 {[%emt 0:00:07]} Nb6 {[%emt 0:00:10]} 14. Ne5 {[%emt 0:00:04]} f6 {[%emt 0:00:05]} 15. Nf3 {[%emt 0:00:03]} Nd5 {[%emt 0:00:09]} 16. e3 {[%emt 0:00:03]} Bd7 {[%emt 0:00:01]} 17. Rg1 {[%emt 0:00:20]} Be8 {[%emt 0:00:03]} 18. Bh3 {[%emt 0:00:12]} Bf7 {[%emt 0:00:28]} 19. Ne4 {[%emt 0:00:20]} a4 {[%emt 0:00:15]} 20. a3 {[%emt 0:00:04]} Ra5 {[%emt 0:00:04]} 21. Nfd2 {[%emt 0:00:37]} Rb5 {[%emt 0:00:48]} 22. Rc2 {[%emt 0:00:25]} Nb6 {[%emt 0:00:43]} 23. Bf1 {[%emt 0:00:55]} Rh5 {[%emt 0:00:15]} 24. Ng3 {[%emt 0:00:19]} Rh6 {[%emt 0:00:08]} 25. Nf3 {[%emt 0:00:18]} Qd7 {[%emt 0:00:35]} 26. Bg2 {[%emt 0:00:04]} Ra8 {[%emt 0:00:03]} 27. Qe1 {[%emt 0:00:11]} Nc8 {[%emt 0:00:11]} 28. e4 {[%emt 0:00:36]} Nd6 {[%emt 0:00:02]} 29. Qe3 {[%emt 0:00:06]} Bg6 {[%emt 0:00:20]} 30. Rd1 {[%emt 0:00:13]} Qe8 {[%emt 0:00:12]} 31. Re2 {[%emt 0:00:04]} f5 {[%emt 0:00:22]} 32. exf5 {[%emt 0:00:37]} Bxf5 {[%emt 0:00:02]} 33. Ng5 {[%emt 0:00:04]} Bg4 {[%emt 0:00:25]} 34. Bf3 {[%emt 0:00:02]} Bf5 {[%emt 0:00:56]} 35. Rde1 {[%emt 0:00:23]} Bf6 {[%emt 0:00:29]} 36. d5 {[%emt 0:00:11]} cxd5 {[%emt 0:00:00]} 37. Bxd5 {[%emt 0:00:02]} Bg4 {[%emt 0:00:38]} 38. f3 {[%emt 0:00:40]} Qb5 {[%emt 0:00:06]} 39. Bxe6 {[%emt 0:00:34]} Bxe6 {[%emt 0:00:01]} 40. Nxe6 {[%emt 0:00:11]} Re8 {[%emt 0:00:37]} 41. Qc5 {[%emt 0:00:16]} Qxc5 {[%emt 0:00:59]} 42. Nxc5 {[%emt 0:00:02]} Rg8 {[%emt 0:00:03]} 43. Nxa4 {[%emt 0:00:30]} Rh4 {[%emt 0:00:01]} 44. Ne4 {[%emt 0:00:09]} Nf5 {[%emt 0:00:02]} 45. Nac5 {[%emt 0:00:19]} Rxf4 {[%emt 0:00:03]} 46. Ne6 {[%emt 0:00:03]} Rh4 {[%emt 0:00:06]} 47. Rc2 {[%emt 0:00:10]} Re8 {[%emt 0:00:14]} 48. Rc5 {[%emt 0:00:20]} Nd4 {[%emt 0:00:26]} 49. Nxd4 {[%emt 0:00:34]} Bxd4 {[%emt 0:00:01]} 50. Rb5 {[%emt 0:00:01]} b6 {[%emt 0:00:06]} 51. Rd1 {[%emt 0:00:02]} Be3 {[%emt 0:00:02]} 52. Kg2 {[%emt 0:00:10]} Bf4 {[%emt 0:00:05]} 53. h3 {[%emt 0:00:04]} Rh6 {[%emt 0:00:00]} 54. Rf5 {[%emt 0:00:04]} Bb8 {[%emt 0:00:03]} 55. Rfd5 {[%emt 0:00:03]} Rhe6 {[%emt 0:00:02]} 56. Rd8 {[%emt 0:00:02]} h6 {[%emt 0:00:01]} 57. Rxe8+ {[%emt 0:00:04]} Rxe8 {[%emt 0:00:00]} 58. Rd7 {[%emt 0:00:02]} Rc8 {[%emt 0:00:01]} 59. h4 {[%emt 0:00:04]} Bf4 {[%emt 0:00:03]} 60. Kh3 {[%emt 0:00:04]} h5 {[%emt 0:00:00]} 61. Rf7 {[%emt 0:00:04]} Be5 {[%emt 0:00:01]} 62. b3 {[%emt 0:00:02]} g6 {[%emt 0:00:11]} 63. Nf6 {[%emt 0:00:01]} Bxf6 {[%emt 0:00:01]} 64. Rxf6 {[%emt 0:00:00]} b5 {[%emt 0:00:02]} 65. Rb6 {[%emt 0:00:05]} Rc5 {[%emt 0:00:01]} 66. Kg3 {[%emt 0:00:02]} Kg7 {[%emt 0:00:01]} 67. Kf4 {[%emt 0:00:02]} Rf5+ {[%emt 0:00:01]} 68. Ke4 {[%emt 0:00:01]} Kf7 {[%emt 0:00:01]} 69. Rc6 {[%emt 0:00:04]} Kg7 {[%emt 0:00:03]} 70. f4 {[%emt 0:00:01]} Rf7 {[%emt 0:00:02]} 71. Rb6 {[%emt 0:00:02]} Ra7 {[%emt 0:00:01]} 72. Rxb5 {[%emt 0:00:02]} Rxa3 {[%emt 0:00:01]} 73. Rb7+ {[%emt 0:00:00]} Kf6 {[%emt 0:00:01]} 74. Rb6+ {[%emt 0:00:01]} Kf7 {[%emt 0:00:00]} 75. Kd5 {[%emt 0:00:02]} Ra1 {[%emt 0:00:02]} 76. b4 {[%emt 0:00:04]} Rd1+ {[%emt 0:00:04]} 77. Kc6 {[%emt 0:00:06]} Rd4 {[%emt 0:00:01]} 78. b5 {[%emt 0:00:02]} Rxf4 {[%emt 0:00:02]} 79. Ra6 {[%emt 0:00:01]} Rxh4 {[%emt 0:00:04]} 80. b6 {[%emt 0:00:00]} Rc4+ {[%emt 0:00:04]} 81. Kd7 {[%emt 0:00:02]} Rb4 {[%emt 0:00:02]} 82. Kc6 {[%emt 0:00:01]} Kf6 {[%emt 0:00:03]} 83. Kc5 {[%emt 0:00:02]} Rxb6 {[%emt 0:00:02]} 84. Rxb6+ {[%emt 0:00:01]} Kf5 {[%emt 0:00:00]} 85. Kd4 {[%emt 0:00:00]} Kf4 {[%emt 0:00:04]} 86. Rxg6 {[%emt 0:00:03]} h4 {[%emt 0:00:00]} 87. Rh6 {[%emt 0:00:02]} Kg3 {[%emt 0:00:00]} 88. Ke3 {[%emt 0:00:01]} h3 {[%emt 0:00:01]} 89. Rg6+ {[%emt 0:00:01]} 1-0

[Event "CCT Chesscom Classic-D2 2024"]
[Site "Online"]
[Date "2024.05.12"]
[Round "3"]
[White "Oparin, Grigoriy"]
[Black "LevonAronian"]
[Result "1/2-1/2"]
[ECO "E60"]
[WhiteElo "2676"]
[BlackElo "2734"]
[Annotator "RC"]
[PlyCount "135"]
[EventDate "2024.05.08"]
[EventType "k.o."]
[EventCountry "NET"]
[SourceTitle "playchess.com"]
[Source "ChessBase"]
[SourceQuality "1"]
[TimeControl "600+2"]

1. d4 {[%emt 0:00:03]} Nf6 {[%emt 0:00:04]} 2. c4 {[%emt 0:00:01]} g6 {[%emt 0:00:02]} 3. Nf3 {[%emt 0:00:09]} Bg7 {[%emt 0:00:01]} 4. g3 {[%emt 0:00:00]} O-O {[%emt 0:00:01]} 5. Bg2 {[%emt 0:00:01]} Nc6 {[%emt 0:00:01]} 6. O-O {[%emt 0:00:01]} Rb8 {[%emt 0:00:01]} 7. Nc3 {[%emt 0:00:03]} a6 {[%emt 0:00:01]} 8. Bf4 {[%emt 0:00:25]} b5 {[%emt 0:00:03]} 9. cxb5 {[%emt 0:00:16]} axb5 {[%emt 0:00:02]} 10. Rc1 {[%emt 0:00:05]} e6 {[%emt 0:00:12]} 11. Qd2 {[%emt 0:00:49]} Ne7 {[%emt 0:00:13]} 12. e4 {[%emt 0:00:58]} b4 {[%emt 0:00:10]} 13. Na4 {[%emt 0:00:01]} d6 {[%emt 0:00:07]} 14. Qc2 {[%emt 0:00:18]} Ne8 {[%emt 0:01:13]} 15. Rfe1 {[%emt 0:00:49]} h6 {[%emt 0:00:14]} 16. h4 {[%emt 0:00:03]} Bb7 {[%emt 0:00:01]} 17. b3 {[%emt 0:00:24]} f5 {[%emt 0:00:07]} 18. e5 {[%emt 0:01:03]} Bd5 {[%emt 0:00:30]} 19. Qd2 {[%emt 0:00:13]} Kh7 {[%emt 0:00:02]} 20. Nb2 {[%emt 0:00:02]} Qd7 {[%emt 0:01:21]} 21. Nc4 {[%emt 0:00:05]} Be4 {[%emt 0:00:10]} 22. Nh2 {[%emt 0:01:14]} Bxg2 {[%emt 0:00:06]} 23. Kxg2 {[%emt 0:00:00]} Nd5 {[%emt 0:00:07]} 24. Nf3 {[%emt 0:00:03]} Nc3 {[%emt 0:00:10]} 25. exd6 {[%emt 0:00:21]} cxd6 {[%emt 0:00:03]} 26. Qe3 {[%emt 0:00:01]} Rf6 {[%emt 0:00:06]} 27. a4 {[%emt 0:00:28]} Qc6 {[%emt 0:00:13]} 28. Qd3 {[%emt 0:00:34]} Rd8 {[%emt 0:00:19]} 29. Bd2 {[%emt 0:00:12]} Nc7 {[%emt 0:00:23]} 30. Bxc3 {[%emt 0:00:04]} bxc3 {[%emt 0:00:01]} 31. Ne3 {[%emt 0:00:15]} Qb7 {[%emt 0:01:45]} 32. Qxc3 {[%emt 0:00:11]} Rf7 {[%emt 0:00:01]} 33. Qc6 {[%emt 0:00:11]} Qxb3 {[%emt 0:00:09]} 34. Rb1 {[%emt 0:00:01]} Qd3 {[%emt 0:00:11]} 35. Rb7 {[%emt 0:00:01]} Rdd7 {[%emt 0:00:09]} 36. Rd1 {[%emt 0:00:28]} Qe4 {[%emt 0:00:44]} 37. Qxe4 {[%emt 0:00:02]} fxe4 {[%emt 0:00:01]} 38. Nd2 {[%emt 0:00:00]} d5 {[%emt 0:00:32]} 39. Nb3 {[%emt 0:00:01]} Na6 {[%emt 0:00:02]} 40. Rb5 {[%emt 0:00:37]} Rc7 {[%emt 0:00:17]} 41. Ng4 {[%emt 0:00:21]} Rc2 {[%emt 0:00:13]} 42. Rb6 {[%emt 0:00:02]} h5 {[%emt 0:00:11]} 43. Rxa6 {[%emt 0:00:13]} hxg4 {[%emt 0:00:03]} 44. Rf1 {[%emt 0:00:00]} Rf3 {[%emt 0:00:31]} 45. Nc5 {[%emt 0:00:11]} Bxd4 {[%emt 0:00:17]} 46. Nxe6 {[%emt 0:00:00]} Bxf2 {[%emt 0:00:01]} 47. Ng5+ {[%emt 0:00:06]} Kh6 {[%emt 0:00:01]} 48. Nxf3 {[%emt 0:00:02]} exf3+ {[%emt 0:00:05]} 49. Kh2 {[%emt 0:00:01]} Be1+ {[%emt 0:00:03]} 50. Kh1 {[%emt 0:00:04]} Bxg3 {[%emt 0:00:00]} 51. Rf6 {[%emt 0:00:04]} Be5 {[%emt 0:00:16]} 52. Re6 {[%emt 0:00:05]} Rh2+ {[%emt 0:00:04]} 53. Kg1 {[%emt 0:00:01]} Re2 {[%emt 0:00:00]} 54. Rxe5 {[%emt 0:00:03]} Rxe5 {[%emt 0:00:02]} 55. a5 {[%emt 0:00:01]} d4 {[%emt 0:00:02]} 56. Ra1 {[%emt 0:00:02]} d3 {[%emt 0:00:01]} 57. Kf2 {[%emt 0:00:02]} d2 {[%emt 0:00:01]} 58. Rd1 {[%emt 0:00:03]} Rxa5 {[%emt 0:00:10]} 59. Rxd2 {[%emt 0:00:01]} g5 {[%emt 0:00:02]} 60. hxg5+ {[%emt 0:00:03]} Kxg5 {[%emt 0:00:01]} 61. Kg3 {[%emt 0:00:00]} Ra1 {[%emt 0:00:03]} 62. Rd5+ {[%emt 0:00:03]} Kg6 {[%emt 0:00:01]} 63. Kxg4 {[%emt 0:00:02]} f2 {[%emt 0:00:04]} 64. Rg5+ {[%emt 0:00:01]} Kh6 {[%emt 0:00:00]} 65. Rh5+ {[%emt 0:00:00]} Kg6 {[%emt 0:00:01]} 66. Rg5+ {[%emt 0:00:01]} Kh6 {[%emt 0:00:02]} 67. Rh5+ {[%emt 0:00:00]} Kg6 {[%emt 0:00:01]} 68. Rg5+ {[%emt 0:00:00]} 1/2-1/2

[Event "CCT Chesscom Classic-D2 2024"]
[Site "Online"]
[Date "2024.05.12"]
[Round "3"]
[White "Oparin, Grigoriy"]
[Black "LevonAronian"]
[Result "1-0"]
[ECO "C65"]
[WhiteElo "2676"]
[BlackElo "2754"]
[Annotator "TA"]
[PlyCount "43"]
[EventDate "2024.05.08"]
[EventType "k.o."]
[EventCountry "NET"]
[SourceTitle "playchess.com"]
[Source "ChessBase"]
[SourceQuality "1"]
[TimeControl "600+2"]

{[%evp 9,43,18,15,14,30,8,10,0,12,0,0,7,7,0,0,-20,-22,-92,-94,-173,-181,-172,-153,-268,-274,-270,-189,-183,-180,-183,-179,-198,-210,-219,511,497]} 1. e4 {[%emt 0:00:11]} e5 {[%emt 0:00:06]} 2. Nf3 {[%emt 0:00:02]} Nc6 {[%emt 0:00:01]} 3. Bb5 {[%emt 0:00:02]} Nf6 {[%emt 0:00:02]} 4. d3 {[%emt 0:00:01]} Bc5 {[%emt 0:00:01]} 5. Bxc6 {[%emt 0:00:02]} dxc6 {[%emt 0:00:01]} 6. O-O {[%emt 0:00:00]} (6. Nxe5 $2 Qd4 7. Qe2 Qxe5 $19) 6... Bd6 {[%emt 0:00:10]} 7. Bg5 {[%emt 0:00:05]} h6 {[%emt 0:00:05]} 8. Bh4 {[%emt 0:00:01] The position is equal.} g5 {[%emt 0:00:07]} 9. Bg3 {[%emt 0:00:01]} Be6 {[%emt 0:00:01]} 10. Qd2 {[%emt 0:00:05]} Nd7 {[%emt 0:00:09]} 11. d4 {[%emt 0:00:32]} f6 {[%emt 0:00:22]} 12. Qa5 {[%emt 0:00:16][%cal Rd4e5]} Bc4 {[%emt 0:00:11]} 13. Rd1 {[%emt 0:00:03]} (13. Rc1 $11 {keeps the balance.}) 13... Be2 $17 {[%emt 0:00:25]} 14. Rd2 {[%emt 0:00:49]} (14. Nbd2 $17) 14... Bxf3 $19 {[%emt 0:00:06]} 15. gxf3 {[%emt 0:00:00]} Qe7 {[%emt 0:00:14]} 16. a3 {[%emt 0:00:40]} (16. dxe5 $17 {was necessary.} fxe5 (16... Nxe5 17. Bxe5 fxe5 18. Rd3 $17) 17. h3) 16... h5 {[%emt 0:00:07] aiming for ...h4.} 17. dxe5 {[%emt 0:00:14]} Bxe5 {[%emt 0:00:43]} (17... Nxe5 18. Bxe5 Bxe5 19. Nc3 $19) 18. Qb4 {[%emt 0:02:09]} h4 {[%emt 0:01:03]} 19. Bxe5 {[%emt 0:00:05]} (19. Qxb7 $2 Rb8 20. Qxc6 hxg3 $19) 19... Nxe5 {[%emt 0:00:02]} 20. Qxb7 {[%emt 0:00:35]} Nxf3+ {[%emt 0:00:55]} 21. Kh1 {[%emt 0:00:03]} O-O $4 {[%emt 0:00:38][%mdl 8192] [#]} ({And not} 21... Rd8 22. Rxd8+ Qxd8 23. Nc3 $11) (21... Qe5 $19 {[%csl Gf3][%cal Re5h2] and all is fine.} 22. Qxc6+ (22. Qxa8+ $2 {perishes.} Kf7 $19) 22... Kf8 (22... Kf7 23. Qd5+ Qxd5 24. Rxd5 $15)) 22. Qb3+ {[%emt 0:00:06] Weighted Error Value: White=0.27 (precise) /Black=0.52.  Missed win:     	---       	Black=1      Mistake:       	White=3     	---        OK:         	White=5     	Black=7      Best:        	White=1     	Black=3} 1-0